account_party,address,code,date,document_number,expense_code_name,expense_code_name_short,id,party_cell,party_cell_code,party_cell_geoobject,purpose,source_bank_account_number,source_bank_account_type,sum,target_legal_personality,target_legal_personality_code,target_type
ОСНОВА,"Київ, вулиця Межигірська, 25",63,2017-12-26,94,Податок на доходи,Податкові платежі,38544,Центральний офіс,33146358,Україна,податок з доходів фізичних осіб із зарплати,2600133909,current,2016.00,УДКСУ у Подільському районі м. Києва,37975298,юридична особа
ОСНОВА,Київ,62,2017-12-26,92,Сплата ЄСВ,Податкові платежі,38543,Центральний офіс,33146358,Україна,Сплата ЄСВ 22% із заробітної плати,2600133909,current,2816.00,ДПІ у Подільському районі ГУ ДФС у м. Києві,39467012,юридична особа
ОСНОВА,"Київ, вулиця Межигірська, 25",61,2017-12-26,93,Військовий збір,Податкові платежі,38542,Центральний офіс,33146358,Україна,"військовий збір 1,5% із заробітної плати",2600133909,current,168.00,УДКСУ у Подільському районі м. Києва,37975298,юридична особа
ОСНОВА,Київ,84,2017-12-26,96,"Заробітна плата, премії","Заробітна плата, лікарняні, вагітності, відрядження, компенсації",38504,Центральний офіс,33146358,Україна,заробітна плата,2600133909,current,2576.00,Карманюк Антоніна Олексіївна,,фізична особа
ОСНОВА,Київ,84,2017-12-26,97,"Заробітна плата, премії","Заробітна плата, лікарняні, вагітності, відрядження, компенсації",38503,Центральний офіс,33146358,Україна,заробітна плата,2600133909,current,2576.00,Кравченко Дарʼя Вікторівна,,фізична особа
ОСНОВА,Київ,84,2017-12-26,98,"Заробітна плата, премії","Заробітна плата, лікарняні, вагітності, відрядження, компенсації",38502,Центральний офіс,33146358,Україна,заробітна плата,2600133909,current,1288.00,Козаченко Олександр Вікторович,,фізична особа
ОСНОВА,Київ,84,2017-12-26,95,"Заробітна плата, премії","Заробітна плата, лікарняні, вагітності, відрядження, компенсації",38501,Центральний офіс,33146358,Україна,заробітна плата,2600133909,current,2576.00,Плакида Андрій Олексійович,,фізична особа
ОСНОВА,"Івано-Франківська область, Івано-Франківськ",51,2017-12-22,89,Оплата ефірного часу на ТБ,Телереклама,38541,Центральний офіс,33146358,Україна,"виготовлення ітрансляція програми ""Новий погляд""",2600133909,current,8100.00,"ТОВ ""Телерадіокомпанія ""РАІ""",36983355,юридична особа
ОСНОВА,Київ,79,2017-12-22,90,"Оренда будинків і приміщень та експлуатаційні витрати (прибирання, страхування орендованих будинків, охорона, сигналізація, ремонт, вивіз сміття, тощо)",Оренда нерухомості,38540,Центральний офіс,33146358,Україна,Суборенда приміщення,2600133909,current,400.00,"ТОВ ""ЕйджДжи Агро Менеджмент "" Преміумсервіс""",37176244,юридична особа
ОСНОВА,Київ,76,2017-12-22,91,Послуги зв’язку,Послуги зв’язку,38539,Центральний офіс,33146358,Україна,за послуги зв'язку,2600133909,current,109.00,"ТОВ ""Інтернаціональні телекомунікації""",30109015,юридична особа
ОСНОВА,"Київська обл., Біла Церква",49,2017-12-19,88,Публікування матеріалів у друкованих ЗМІ,Реклама в друкованих ЗМІ,38538,Центральний офіс,33146358,Україна,"розміщення реклами у газеті ""Майдан-брок""",2600133909,current,1200.00,Васильєв І В,3051901577,фізична особа
ОСНОВА,"Київ, вулиця Андріївська, 4",70,2017-12-08,145145597,Банківські послуги,Інші витрати,38537,Центральний офіс,33146358,Україна,комісія банку за відправлені платежі,2600133909,current,270.00,"ПАТ ""ПУМБ""",14282829,юридична особа
ОСНОВА,Київ,51,2017-12-08,83,Оплата ефірного часу на ТБ,Телереклама,38536,Центральний офіс,33146358,Україна,послуги з виробництва та розміщення інформаційно-рекламних матеріалів,2600133909,current,12000.00,"ТОВ ""Телерадіокомпанія ""Україна""",05744121,юридична особа
ОСНОВА,"Донецька область, Костянтинівка",49,2017-12-08,86,Публікування матеріалів у друкованих ЗМІ,Реклама в друкованих ЗМІ,38535,Центральний офіс,33146358,Україна,ПОСЛУГИ З РОЗМІЩЕННЯ ІНФОРМАЦІЙНО-РЕКЛАМНИХ МТЕРІАЛІВ У ГАЗЕТІ,2600133909,current,4124.00,"ТОВ ""Відродження Донбасу""",39835915,юридична особа
ОСНОВА,"Донецька область, Краматорськ",58,2017-12-08,85,"Виготовлення друкованих матеріалів (плакатів, листівок, буклетів та інших агітаційних матеріалів)",Друкована агітація,38534,Центральний офіс,33146358,Україна,послуги з виготовлення інформаційних матеріалів,2600133909,current,2000.00,"НТКУ ""Донецька регіональна дирекція""",40020551,юридична особа
ОСНОВА,"Донецька область, Краматорськ",51,2017-12-08,87,Оплата ефірного часу на ТБ,Телереклама,38533,Центральний офіс,33146358,Україна,рекламно-інформаційні послуги,2600133909,current,1350.00,"ТОВ ""Телерадіокомпанія ""СКЕТ""",33270691,юридична особа
ОСНОВА,"Донецька область, Краматорськ",51,2017-12-08,84,Оплата ефірного часу на ТБ,Телереклама,38532,Центральний офіс,33146358,Україна,"Розміщення рекламного сюжетуна телеканалі ""ДО ТЕБЕ""",2600133909,current,5000.00,"НТКУ ""Донецька регіональна дирекція""",40020551,юридична особа
ОСНОВА,Київ,79,2017-12-04,81,"Оренда будинків і приміщень та експлуатаційні витрати (прибирання, страхування орендованих будинків, охорона, сигналізація, ремонт, вивіз сміття, тощо)",Оренда нерухомості,38531,Центральний офіс,33146358,Україна,Суборенда за 09.2017,2600133909,current,6969.31,"ВСГО "" Федерація бейсболу і софтболу України""",21602660,юридична особа
ОСНОВА,Київ,60,2017-12-04,82,Інші податки,Податкові платежі,38530,Центральний офіс,33146358,Україна,компенсація витрат за користування земельною ділянкою за12.2017,2600133909,current,79.73,"ВСГО "" Федерація бейсболу і софтболу України""",21602660,юридична особа
ОСНОВА,"Київ, вулиця Межигірська, 25",65,2017-12-04,80,Перерахування внесків приватних донорів до держбюджету,Перерахування внесків приватних донорів до держбюджету,38529,Центральний офіс,33146358,Україна,перерахування до бюджету різниці вартості за суборенду за12.2017р,2600133909,current,1094.26,УДКСУ у Подільському районі м. Києва,37975298,юридична особа
ОСНОВА,"Київ, вулиця Андріївська, 4",70,2017-11-30,TR.21844333.652737.359,Банківські послуги,Інші витрати,38528,Центральний офіс,33146358,Україна,комісія банку тарифному пакету,2600133909,current,120.00,"ПАТ ""ПУМБ""",14282829,юридична особа
ОСНОВА,Київ,62,2017-11-27,75,Сплата ЄСВ,Податкові платежі,38527,Центральний офіс,33146358,Україна,Сплата ЄСВ 22% із заробітної плати,2600133909,current,2816.00,ДПІ у Подільському районі ГУ ДФС у м. Києві,39467012,юридична особа
ОСНОВА,"Київ, вулиця Межигірська, 25",61,2017-11-27,74,Військовий збір,Податкові платежі,38526,Центральний офіс,33146358,Україна,"військовий збір 1,5% із заробітної плати",2600133909,current,168.00,УДКСУ у Подільському районі м. Києва,37975298,юридична особа
ОСНОВА,"Київ, вулиця Межигірська, 25",63,2017-11-27,73,Податок на доходи,Податкові платежі,38525,Центральний офіс,33146358,Україна,податок з доходів фізичних осіб із зарплати,2600133909,current,2016.00,УДКСУ у Подільському районі м. Києва,37975298,юридична особа
ОСНОВА,Київ,84,2017-11-27,76,"Заробітна плата, премії","Заробітна плата, лікарняні, вагітності, відрядження, компенсації",38500,Центральний офіс,33146358,Україна,заробітна плата,2600133909,current,2576.00,Кравченко Дарʼя Вікторівна,,фізична особа
ОСНОВА,Київ,84,2017-11-27,77,"Заробітна плата, премії","Заробітна плата, лікарняні, вагітності, відрядження, компенсації",38499,Центральний офіс,33146358,Україна,заробітна плата,2600133909,current,1288.00,Козаченко Олександр Вікторович,,фізична особа
ОСНОВА,Київ,84,2017-11-27,79,"Заробітна плата, премії","Заробітна плата, лікарняні, вагітності, відрядження, компенсації",38498,Центральний офіс,33146358,Україна,заробітна плата,2600133909,current,2576.00,Карманюк Антоніна Олексіївна,,фізична особа
ОСНОВА,Київ,84,2017-11-27,78,"Заробітна плата, премії","Заробітна плата, лікарняні, вагітності, відрядження, компенсації",38497,Центральний офіс,33146358,Україна,заробітна плата,2600133909,current,2576.00,Плакида Андрій Олексійович,,фізична особа
ОСНОВА,Київ,72,2017-11-17,69,"Придбання, ремонт офісної техніки та програмного забезпечення (Бухгалтерські програми, Ліга.закон, домени)",Придбання офісної техніки та програмного забезпечення,38524,Центральний офіс,33146358,Україна,ліцнзія на надання права на використання фотоWEB у фейсбуці,2600133909,current,4002.44,"ТОВ ""ГЛОБАЛ ІМІДЖЕС ЮКРЕЙН""",39829456,юридична особа
ОСНОВА,"Київ, вулиця Андріївська, 4",70,2017-11-17,142959774,Банківські послуги,Інші витрати,38523,Центральний офіс,33146358,Україна,комісія банку за відправлені платежі,2600133909,current,150.00,"ПАТ ""ПУМБ""",14282829,юридична особа
ОСНОВА,Київ,79,2017-11-17,70,"Оренда будинків і приміщень та експлуатаційні витрати (прибирання, страхування орендованих будинків, охорона, сигналізація, ремонт, вивіз сміття, тощо)",Оренда нерухомості,38522,Центральний офіс,33146358,Україна,Суборенда приміщення,2600133909,current,400.00,"ТОВ ""ЕйджДжи Агро Менеджмент "" Преміумсервіс""",37176244,юридична особа
ОСНОВА,Київ,57,2017-11-17,71,Виготовлення брендованої продукції,"Виготовлення брендованої продукції (футболки, кепки, парасольки)",38521,Центральний офіс,33146358,Україна,За прапор і табличку,2600133909,current,540.00,"ТОВ ""Ай Сі Ес-Актив""",35393534,юридична особа
ОСНОВА,Київ,58,2017-11-17,72,"Виготовлення друкованих матеріалів (плакатів, листівок, буклетів та інших агітаційних матеріалів)",Друкована агітація,38520,Центральний офіс,33146358,Україна,За банер та друк визитівок,2600133909,current,760.80,"ТОВ ""Ай Сі Ес-Актив""",35393534,юридична особа
ОСНОВА,Київ,79,2017-11-09,67,"Оренда будинків і приміщень та експлуатаційні витрати (прибирання, страхування орендованих будинків, охорона, сигналізація, ремонт, вивіз сміття, тощо)",Оренда нерухомості,38519,Центральний офіс,33146358,Україна,Суборенда за 11.2017,2600133909,current,6886.67,"ВСГО "" Федерація бейсболу і софтболу України""",21602660,юридична особа
ОСНОВА,Київ,60,2017-11-09,68,Інші податки,Податкові платежі,38518,Центральний офіс,33146358,Україна,компенсація витрат за користування земельною ділянкою за 11.2017,2600133909,current,79.73,"ВСГО "" Федерація бейсболу і софтболу України""",21602660,юридична особа
ОСНОВА,"Київ, вулиця Межигірська, 25",65,2017-11-09,66,Перерахування внесків приватних донорів до держбюджету,Перерахування внесків приватних донорів до держбюджету,38517,Центральний офіс,33146358,Україна,перерахування до бюджету різниці вартості за суборенду за11.2017р,2600133909,current,1081.08,УДКСУ у Подільському районі м. Києва,37975298,юридична особа
ОСНОВА,"Київ, вулиця Андріївська, 4",70,2017-10-31,TR.21844333.652737.359,Банківські послуги,Інші витрати,38516,Центральний офіс,33146358,Україна,комісія банку тарифному пакету,2600133909,current,120.00,"ПАТ ""ПУМБ""",14282829,юридична особа
ОСНОВА,"Київ, вулиця Межигірська, 25",63,2017-10-27,60,Податок на доходи,Податкові платежі,38515,Центральний офіс,33146358,Україна,податок з доходів фізичних осіб із зарплати,2600133909,current,2016.00,УДКСУ у Подільському районі м. Києва,37975298,юридична особа
ОСНОВА,"Київ, вулиця Межигірська, 25",61,2017-10-27,58,Військовий збір,Податкові платежі,38514,Центральний офіс,33146358,Україна,"військовий збір 1,5% із заробітної плати",2600133909,current,168.00,УДКСУ у Подільському районі м. Києва,37975298,юридична особа
ОСНОВА,Київ,62,2017-10-27,59,Сплата ЄСВ,Податкові платежі,38513,Центральний офіс,33146358,Україна,Сплата ЄСВ 22% із заробітної плати,2600133909,current,2816.00,ДПІ у Подільському районі ГУ ДФС у м. Києві,39467012,юридична особа
ОСНОВА,Київ,84,2017-10-27,63,"Заробітна плата, премії","Заробітна плата, лікарняні, вагітності, відрядження, компенсації",38496,Центральний офіс,33146358,Україна,заробітна плата,2600133909,current,2576.00,Кравченко Дарʼя Вікторівна,,фізична особа
ОСНОВА,Київ,84,2017-10-27,65,"Заробітна плата, премії","Заробітна плата, лікарняні, вагітності, відрядження, компенсації",38495,Центральний офіс,33146358,Україна,заробітна плата,2600133909,current,1288.00,Козаченко Олександр Вікторович,,фізична особа
ОСНОВА,Київ,84,2017-10-27,62,"Заробітна плата, премії","Заробітна плата, лікарняні, вагітності, відрядження, компенсації",38494,Центральний офіс,33146358,Україна,заробітна плата,2600133909,current,2576.00,Карманюк Антоніна Олексіївна,,фізична особа
ОСНОВА,Київ,84,2017-10-27,64,"Заробітна плата, премії","Заробітна плата, лікарняні, вагітності, відрядження, компенсації",38493,Центральний офіс,33146358,Україна,заробітна плата,2600133909,current,2576.00,Плакида Андрій Олексійович,,фізична особа
ОСНОВА,Київ,43,2017-10-24,57,Інші витрати,Інші витрати,38512,Центральний офіс,33146358,Україна,за RUM карту,2600133909,current,30.00,"ТОВ ""Інтернаціональні телекомунікації""",30109015,юридична особа
ОСНОВА,Київ,76,2017-10-23,55,Послуги зв’язку,Послуги зв’язку,38511,Центральний офіс,33146358,Україна,за телефон,2600133909,current,599.00,"ТОВ ""Інтернаціональні телекомунікації""",30109015,юридична особа
ОСНОВА,Київ,76,2017-10-23,56,Послуги зв’язку,Послуги зв’язку,38510,Центральний офіс,33146358,Україна,за послуги зв'язку,2600133909,current,70.05,"ТОВ ""Інтернаціональні телекомунікації""",30109015,юридична особа
ОСНОВА,Київ,58,2017-10-19,54,"Виготовлення друкованих матеріалів (плакатів, листівок, буклетів та інших агітаційних матеріалів)",Друкована агітація,38509,Центральний офіс,33146358,Україна,за виготовлення банерів,2600133909,current,2000.00,Сидоренко К О,3068617475,фізична особа
ОСНОВА,Київ,79,2017-10-12,51,"Оренда будинків і приміщень та експлуатаційні витрати (прибирання, страхування орендованих будинків, охорона, сигналізація, ремонт, вивіз сміття, тощо)",Оренда нерухомості,38508,Центральний офіс,33146358,Україна,Суборенда за 10.2017,2600133909,current,6751.64,"ВСГО "" Федерація бейсболу і софтболу України""",21602660,юридична особа
ОСНОВА,Київ,60,2017-10-12,52,Інші податки,Податкові платежі,38507,Центральний офіс,33146358,Україна,компенсація витрат за користування земельною ділянкою за 10.2017,2600133909,current,79.73,"ВСГО "" Федерація бейсболу і софтболу України""",21602660,юридична особа
ОСНОВА,"Київ, вулиця Межигірська, 25",65,2017-10-12,53,Перерахування внесків приватних донорів до держбюджету,Перерахування внесків приватних донорів до держбюджету,38506,Центральний офіс,33146358,Україна,перерахування до бюджету різниці вартості за суборенду за10.2017р,2600133909,current,1060.24,УДКСУ у Подільському районі м. Києва,37975298,юридична особа
ОСНОВА,"Київ, вулиця Андріївська, 4",70,2017-10-11,13934636768421.9,Банківські послуги,Інші витрати,38505,Центральний офіс,33146358,Україна,комісія банку за відправлені платежі,2600133909,current,160.00,"ПАТ ""ПУМБ""",14282829,юридична особа
ОСНОВА,"Київ, вулиця Андріївська, 4",70,2017-09-29,13815302,Банківські послуги,Інші витрати,38492,Центральний офіс,33146358,Україна,комісія банку за відправлені платежі,2600133909,current,70.00,"ПАТ ""ПУМБ""",14282829,юридична особа
ОСНОВА,"Київ, вулиця Межигірська, 25",63,2017-09-29,44,Податок на доходи,Податкові платежі,38491,Центральний офіс,33146358,Україна,податок з доходів фізичних осіб із зарплати,2600133909,current,2016.00,УДКСУ у Подільському районі м. Києва,37975298,юридична особа
ОСНОВА,Київ,62,2017-09-29,46,Сплата ЄСВ,Податкові платежі,38490,Центральний офіс,33146358,Україна,Сплата ЄСВ 22% із заробітної плати,2600133909,current,2528.00,ДПІ у Подільському районі ГУ ДФС у м. Києві,39467012,юридична особа
ОСНОВА,"Київ, вулиця Межигірська, 25",61,2017-09-29,45,Військовий збір,Податкові платежі,38489,Центральний офіс,33146358,Україна,"військовий збір 1,5% із заробітної плати",2600133909,current,168.00,УДКСУ у Подільському районі м. Києва,37975298,юридична особа
ОСНОВА,"Київ, вулиця Андріївська, 4",70,2017-09-29,TR.21844333.370431.359768421.9119,Банківські послуги,Інші витрати,38488,Центральний офіс,33146358,Україна,комісія банку за пакетне обслуговування,2600133909,current,120.00,"ПАТ ""ПУМБ""",14282829,юридична особа
ОСНОВА,Київ,84,2017-09-29,48,"Заробітна плата, премії","Заробітна плата, лікарняні, вагітності, відрядження, компенсації",38465,Центральний офіс,33146358,Україна,заробітна плата,2600133909,current,2576.00,Кравченко Дарʼя Вікторівна,,фізична особа
ОСНОВА,Київ,84,2017-09-29,47,"Заробітна плата, премії","Заробітна плата, лікарняні, вагітності, відрядження, компенсації",38464,Центральний офіс,33146358,Україна,заробітна плата,2600133909,current,1288.00,Козаченко Олександр Вікторович,,фізична особа
ОСНОВА,Київ,84,2017-09-29,50,"Заробітна плата, премії","Заробітна плата, лікарняні, вагітності, відрядження, компенсації",38463,Центральний офіс,33146358,Україна,заробітна плата,2600133909,current,2576.00,Карманюк Антоніна Олексіївна,,фізична особа
ОСНОВА,Київ,84,2017-09-29,49,"Заробітна плата, премії","Заробітна плата, лікарняні, вагітності, відрядження, компенсації",38462,Центральний офіс,33146358,Україна,заробітна плата,2600133909,current,2576.00,Плакида Андрій Олексійович,,фізична особа
ОСНОВА,Київ,53,2017-09-04,39,Витрати на розміщення зовнішньої реклами,Зовнішня реклама,38487,Центральний офіс,33146358,Україна,розміщення рекламних матеріалів на конструкціях зовнішньої реклами,2600133909,current,3658740.00,"ТОВ ""КІТ медіа""",41497858,юридична особа
ОСНОВА,Київ,72,2017-09-04,40,"Придбання, ремонт офісної техніки та програмного забезпечення (Бухгалтерські програми, Ліга.закон, домени)",Придбання офісної техніки та програмного забезпечення,38486,Центральний офіс,33146358,Україна,ліцнзія на надання права на використання фотоWEB у фейсбуці,2600133909,current,7638.13,"ТОВ ""ГЛОБАЛ ІМІДЖЕС ЮКРЕЙН""",39829456,юридична особа
ОСНОВА,Київ,79,2017-09-04,41,"Оренда будинків і приміщень та експлуатаційні витрати (прибирання, страхування орендованих будинків, охорона, сигналізація, ремонт, вивіз сміття, тощо)",Оренда нерухомості,38485,Центральний офіс,33146358,Україна,Суборенда за 09.2017,2600133909,current,6758.39,"ВСГО "" Федерація бейсболу і софтболу України""",21602660,юридична особа
ОСНОВА,Київ,60,2017-09-04,42,Інші податки,Податкові платежі,38484,Центральний офіс,33146358,Україна,компенсація витрат за користування земельною ділянкою за 09.2017,2600133909,current,79.73,"ВСГО "" Федерація бейсболу і софтболу України""",21602660,юридична особа
ОСНОВА,"Київ, вулиця Межигірська, 25",65,2017-09-04,43,Перерахування внесків приватних донорів до держбюджету,Перерахування внесків приватних донорів до держбюджету,38483,Центральний офіс,33146358,Україна,перерахування до бюджету різниці вартості за суборенду за09.2017р,2600133909,current,1061.16,УДКСУ у Подільському районі м. Києва,37975298,юридична особа
ОСНОВА,"Київ, вулиця Андріївська, 4",70,2017-08-29,TR.21844333.500233.359768421.9119,Банківські послуги,Інші витрати,38482,Центральний офіс,33146358,Україна,комісія банку за пакетне обслуговування,2600133909,current,120.00,"ПАТ ""ПУМБ""",14282829,юридична особа
ОСНОВА,Київ,62,2017-08-29,32,Сплата ЄСВ,Податкові платежі,38481,Центральний офіс,33146358,Україна,Сплата ЄСВ 22% із заробітної плати,2600133909,current,2560.00,ДПІ у Подільському районі ГУ ДФС у м. Києві,39467012,юридична особа
ОСНОВА,"Київ, вулиця Межигірська, 25",61,2017-08-29,34,Військовий збір,Податкові платежі,38480,Центральний офіс,33146358,Україна,"військовий збір 1,5% із заробітної плати",2600133909,current,154.91,УДКСУ у Подільському районі м. Києва,37975298,юридична особа
ОСНОВА,"Київ, вулиця Межигірська, 25",63,2017-08-29,33,Податок на доходи,Податкові платежі,38479,Центральний офіс,33146358,Україна,податок з доходів фізичних осіб із зарплати,2600133909,current,1858.91,УДКСУ у Подільському районі м. Києва,37975298,юридична особа
ОСНОВА,Київ,84,2017-08-29,37,"Заробітна плата, премії","Заробітна плата, лікарняні, вагітності, відрядження, компенсації",38461,Центральний офіс,33146358,Україна,заробітна плата,2600133909,current,2107.64,Кравченко Дарʼя Вікторівна,,фізична особа
ОСНОВА,Київ,84,2017-08-29,38,"Заробітна плата, премії","Заробітна плата, лікарняні, вагітності, відрядження, компенсації",38460,Центральний офіс,33146358,Україна,заробітна плата,2600133909,current,1053.81,Козаченко Олександр Вікторович,,фізична особа
ОСНОВА,Київ,84,2017-08-29,35,"Заробітна плата, премії","Заробітна плата, лікарняні, вагітності, відрядження, компенсації",38459,Центральний офіс,33146358,Україна,заробітна плата,2600133909,current,2576.00,Карманюк Антоніна Олексіївна,,фізична особа
ОСНОВА,Київ,84,2017-08-29,36,"Заробітна плата, премії","Заробітна плата, лікарняні, вагітності, відрядження, компенсації",38458,Центральний офіс,33146358,Україна,заробітна плата,2600133909,current,2576.00,Плакида Андрій Олексійович,,фізична особа
ОСНОВА,Київ,79,2017-08-21,31,"Оренда будинків і приміщень та експлуатаційні витрати (прибирання, страхування орендованих будинків, охорона, сигналізація, ремонт, вивіз сміття, тощо)",Оренда нерухомості,38478,Центральний офіс,33146358,Україна,Суборенда приміщеннялати,2600133909,current,600.00,"ТОВ ""ЕйджДжи Агро Менеджмент "" Преміумсервіс""",37176244,юридична особа
ОСНОВА,Київ,60,2017-08-21,27,Інші податки,Податкові платежі,38477,Центральний офіс,33146358,Україна,компенсація витрат за користування земельною ділянкою за 08.2017,2600133909,current,79.73,"ВСГО "" Федерація бейсболу і софтболу України""",21602660,юридична особа
ОСНОВА,Київ,79,2017-08-21,25,"Оренда будинків і приміщень та експлуатаційні витрати (прибирання, страхування орендованих будинків, охорона, сигналізація, ремонт, вивіз сміття, тощо)",Оренда нерухомості,38476,Центральний офіс,33146358,Україна,Суборенда за 07.2017,2600133909,current,3212.25,"ВСГО "" Федерація бейсболу і софтболу України""",21602660,юридична особа
ОСНОВА,Київ,60,2017-08-21,26,Інші податки,Податкові платежі,38475,Центральний офіс,33146358,Україна,компенсація витрат за користування земельною ділянкою за 07.2017,2600133909,current,43.58,"ВСГО "" Федерація бейсболу і софтболу України""",21602660,юридична особа
ОСНОВА,Київ,79,2017-08-21,28,"Оренда будинків і приміщень та експлуатаційні витрати (прибирання, страхування орендованих будинків, охорона, сигналізація, ремонт, вивіз сміття, тощо)",Оренда нерухомості,38474,Центральний офіс,33146358,Україна,Суборенда за 08.2017,2600133909,current,6744.87,"ВСГО "" Федерація бейсболу і софтболу України""",21602660,юридична особа
ОСНОВА,"Київ, вулиця Межигірська, 25",65,2017-08-21,29,Перерахування внесків приватних донорів до держбюджету,Перерахування внесків приватних донорів до держбюджету,38473,Центральний офіс,33146358,Україна,перерахування до бюджету різниці вартості за суборенду за07.2017р,2600133909,current,496.95,УДКСУ у Подільському районі м. Києва,37975298,юридична особа
ОСНОВА,"Київ, вулиця Межигірська, 25",65,2017-08-21,30,Перерахування внесків приватних донорів до держбюджету,Перерахування внесків приватних донорів до держбюджету,38472,Центральний офіс,33146358,Україна,перерахування до бюджету різниці вартості за суборенду за08.2017р,2600133909,current,1058.71,УДКСУ у Подільському районі м. Києва,37975298,юридична особа
ОСНОВА,Київ,72,2017-08-07,24,"Придбання, ремонт офісної техніки та програмного забезпечення (Бухгалтерські програми, Ліга.закон, домени)",Придбання офісної техніки та програмного забезпечення,38471,Центральний офіс,33146358,Україна,ліцнзія на надання права на використання фотоWEB у фейсбуці,2600133909,current,7727.03,"ТОВ ""ГЛОБАЛ ІМІДЖЕС ЮКРЕЙН""",39829456,юридична особа
ОСНОВА,"Київ, вулиця Андріївська, 4",70,2017-08-03,13231841,Банківські послуги,Інші витрати,38470,Центральний офіс,33146358,Україна,комісія банку за відправлені платежі,2600133909,current,140.00,"ПАТ ""ПУМБ""",14282829,юридична особа
ОСНОВА,"Київ, вулиця Межигірська, 25",63,2017-08-03,20,Податок на доходи,Податкові платежі,38469,Центральний офіс,33146358,Україна,податок з доходів фізичних осіб із зарплати,2600133909,current,1152.00,УДКСУ у Подільському районі м. Києва,37975298,юридична особа
ОСНОВА,Київ,62,2017-08-03,21,Сплата ЄСВ,Податкові платежі,38468,Центральний офіс,33146358,Україна,Сплата ЄСВ 22% із заробітної плати,2600133909,current,1408.00,ДПІ у Подільському районі ГУ ДФС у м. Києві,39467012,юридична особа
ОСНОВА,"Київ, вулиця Межигірська, 25",61,2017-08-03,19,Військовий збір,Податкові платежі,38467,Центральний офіс,33146358,Україна,"військовий збір 1,5% із заробітної плати",2600133909,current,96.00,УДКСУ у Подільському районі м. Києва,37975298,юридична особа
ОСНОВА,"Київ, вулиця Андріївська, 4",70,2017-08-03,TR.21844333.34756.359768421.9119,Банківські послуги,Інші витрати,38466,Центральний офіс,33146358,Україна,комісія банку за пакетне обслуговування,2600133909,current,120.00,"ПАТ ""ПУМБ""",14282829,юридична особа
ОСНОВА,Київ,84,2017-08-03,23,"Заробітна плата, премії","Заробітна плата, лікарняні, вагітності, відрядження, компенсації",38457,Центральний офіс,33146358,Україна,заробітна плата,2600133909,current,2576.00,Карманюк Антоніна Олексіївна,,фізична особа
ОСНОВА,Київ,84,2017-08-03,22,"Заробітна плата, премії","Заробітна плата, лікарняні, вагітності, відрядження, компенсації",38456,Центральний офіс,33146358,Україна,заробітна плата,2600133909,current,2576.00,Плакида Андрій Олексійович,,фізична особа
ОСНОВА,"Київ, вулиця Андріївська, 4",70,2017-06-30,TR.21844333.517469.359,Банківські послуги,Інші витрати,38455,Центральний офіс,33146358,Україна,комісія банку за пакетне обслуговування,2600133909,current,120.00,"ПАТ ""ПУМБ""",14282829,юридична особа
ОСНОВА,"Київ, вулиця Межигірська, 25",63,2017-06-27,15,Податок на доходи,Податкові платежі,38454,Центральний офіс,33146358,Україна,податок з доходів фізичних осіб із зарплати,2600133909,current,1152.00,УДКСУ у Подільському районі м. Києва,37975298,юридична особа
ОСНОВА,Київ,62,2017-06-27,14,Сплата ЄСВ,Податкові платежі,38453,Центральний офіс,33146358,Україна,Сплата ЄСВ 22% із заробітної плати,2600133909,current,1408.00,ДПІ у Подільському районі ГУ ДФС у м. Києві,39467012,юридична особа
ОСНОВА,"Київ, вулиця Межигірська, 25",61,2017-06-27,16,Військовий збір,Податкові платежі,38452,Центральний офіс,33146358,Україна,"військовий збір 1,5% із заробітної плати",2600133909,current,96.00,УДКСУ у Подільському районі м. Києва,37975298,юридична особа
ОСНОВА,Київ,84,2017-06-27,17,"Заробітна плата, премії","Заробітна плата, лікарняні, вагітності, відрядження, компенсації",38434,Центральний офіс,33146358,Україна,заробітна плата,2600133909,current,2576.00,Плакида Андрій Олексійович,,фізична особа
ОСНОВА,Київ,84,2017-06-27,18,"Заробітна плата, премії","Заробітна плата, лікарняні, вагітності, відрядження, компенсації",38433,Центральний офіс,33146358,Україна,заробітна плата,2600133909,current,2576.00,Карманюк Антоніна Олексіївна,,фізична особа
ОСНОВА,"Київ, вулиця Межигірська, 25",63,2017-06-14,11,Податок на доходи,Податкові платежі,38451,Центральний офіс,33146358,Україна,податок з доходів фізичних осіб із зарплати,2600133909,current,1152.00,УДКСУ у Подільському районі м. Києва,37975298,юридична особа
ОСНОВА,Київ,62,2017-06-14,9,Сплата ЄСВ,Податкові платежі,38450,Центральний офіс,33146358,Україна,Сплата ЄСВ 22% із заробітної плати,2600133909,current,1408.00,ДПІ у Подільському районі ГУ ДФС у м. Києві,39467012,юридична особа
ОСНОВА,"Київ, вулиця Межигірська, 25",61,2017-06-14,10,Військовий збір,Податкові платежі,38449,Центральний офіс,33146358,Україна,"військовий збір 1,5% із заробітної плати",2600133909,current,96.00,УДКСУ у Подільському районі м. Києва,37975298,юридична особа
ОСНОВА,Київ,84,2017-06-14,5,"Заробітна плата, премії","Заробітна плата, лікарняні, вагітності, відрядження, компенсації",38432,Центральний офіс,33146358,Україна,заробітна плата,2600133909,current,2576.00,Карманюк Антоніна Олексіївна,,фізична особа
ОСНОВА,Київ,84,2017-06-14,12,"Заробітна плата, премії","Заробітна плата, лікарняні, вагітності, відрядження, компенсації",38431,Центральний офіс,33146358,Україна,заробітна плата,2600133909,current,2576.00,Плакида Андрій Олексійович,,фізична особа
ОСНОВА,"Київ, вулиця Андріївська, 4",70,2017-05-31,TR.21844333.517469.359,Банківські послуги,Інші витрати,38448,Центральний офіс,33146358,Україна,комісія банку за пакетне обслуговування,2600133909,current,120.00,"ПАТ ""ПУМБ""",14282829,юридична особа
ОСНОВА,Київ,69,2017-05-31,8,Організація заходів та інші організаційні послуги,Організація заходів та інші організаційні послуги,38447,Центральний офіс,33146358,Україна,Суборенда конференцзалу,2600133909,current,1610.00,"ТОВ "" ХАБ.4.0"" "" Преміумсервіс""",39803951,юридична особа
ОСНОВА,Київ,69,2017-05-31,7,Організація заходів та інші організаційні послуги,Організація заходів та інші організаційні послуги,38446,Центральний офіс,33146358,Україна,Безповоротна фінансова допомога на проведення культурно-просвітницького заходу,2600133909,current,20000.00,"КРВ УМАКО ""Сузірʼя"" "" Преміумсервіс""",24100829,юридична особа
ОСНОВА,Київ,79,2017-05-31,6,"Оренда будинків і приміщень та експлуатаційні витрати (прибирання, страхування орендованих будинків, охорона, сигналізація, ремонт, вивіз сміття, тощо)",Оренда нерухомості,38445,Центральний офіс,33146358,Україна,Суборенда приміщеннялати,2600133909,current,1000.00,"ТОВ ""ЕйджДжи Агро Менеджмент "" Преміумсервіс""",37176244,юридична особа
ОСНОВА,"Київ, вулиця Межигірська, 25",63,2017-05-18,2,Податок на доходи,Податкові платежі,38444,Центральний офіс,33146358,Україна,податок з доходів фізичних осіб із зарплати,2600133909,current,720.00,УДКСУ у Подільському районі м. Києва,37975298,юридична особа
ОСНОВА,"Київ, вулиця Межигірська, 25",61,2017-05-18,3,Військовий збір,Податкові платежі,38443,Центральний офіс,33146358,Україна,"військовий збір 1,5% із заробітної плати",2600133909,current,60.00,УДКСУ у Подільському районі м. Києва,37975298,юридична особа
ОСНОВА,Київ,62,2017-05-18,1,Сплата ЄСВ,Податкові платежі,38442,Центральний офіс,33146358,Україна,Сплата ЄСВ 22% із заробітної плати,2600133909,current,880.00,ДПІ у Подільському районі ГУ ДФС у м. Києві,39467012,юридична особа
ОСНОВА,Київ,84,2017-05-18,5,"Заробітна плата, премії","Заробітна плата, лікарняні, вагітності, відрядження, компенсації",38430,Центральний офіс,33146358,Україна,заробітна плата,2600133909,current,644.00,Карманюк Антоніна Олексіївна,,фізична особа
ОСНОВА,Київ,84,2017-05-18,4,"Заробітна плата, премії","Заробітна плата, лікарняні, вагітності, відрядження, компенсації",38429,Центральний офіс,33146358,Україна,заробітна плата,2600133909,current,2576.00,Плакида Андрій Олексійович,,фізична особа
ОСНОВА,Київ,62,2017-04-28,5,Сплата ЄСВ,Податкові платежі,38441,Центральний офіс,33146358,Україна,Сплата ЄСВ 22% із заробітної плати,2600133909,current,704.00,ДПІ у Подільському районі ГУ ДФС у м. Києві,39467012,юридична особа
ОСНОВА,"Київ, вулиця Андріївська, 4",70,2017-04-20,TR.21143824.372250.359768421.9119,Банківські послуги,Інші витрати,38440,Центральний офіс,33146358,Україна,комісія банку за пакетне обслуговування,2600133909,current,49.00,"ПАТ ""ПУМБ""",14282829,юридична особа
ОСНОВА,"Київ, вулиця Володимирська, 69",61,2017-04-06,19,Військовий збір,Податкові платежі,38439,Центральний офіс,33146358,Україна,Військовий збір із зарплати,2600133909,current,48.00,УДКСУ у Голосіївському районі м. Києва,38039757,юридична особа
ОСНОВА,Київ,62,2017-04-06,15,Сплата ЄСВ,Податкові платежі,38438,Центральний офіс,33146358,Україна,Сплата ЄСВ 22% із заробітної плати,2600133909,current,704.00,ДПІ у Голосіївському районі м. Києва,39468461,юридична особа
ОСНОВА,"Київ, вулиця Володимирська, 69",63,2017-04-06,16,Податок на доходи,Податкові платежі,38437,Центральний офіс,33146358,Україна,податок з доходів фізичних осіб із зарплати,2600133909,current,576.00,УДКСУ у Голосіївському районі м. Києва,38039757,юридична особа
ОСНОВА,Київ,72,2017-04-06,19,"Придбання, ремонт офісної техніки та програмного забезпечення (Бухгалтерські програми, Ліга.закон, домени)",Придбання офісної техніки та програмного забезпечення,38436,Центральний офіс,33146358,Україна,Оплата послуг ПЗ,2600133909,current,330.00,"ТОВ "" Преміумсервіс""",39585824,юридична особа
ОСНОВА,"Київ, вулиця Андріївська, 4",70,2017-04-06,TR.21143824.768421.9119,Банківські послуги,Інші витрати,38435,Центральний офіс,33146358,Україна,комісія банку за пакетне обслуговування,2600133909,current,13.00,"ПАТ ""ПУМБ""",14282829,юридична особа
ОСНОВА,Київ,84,2017-04-06,18,"Заробітна плата, премії","Заробітна плата, лікарняні, вагітності, відрядження, компенсації",38428,Центральний офіс,33146358,Україна,заробітна плата,2600133909,current,2576.00,Плакида Андрій Олексійович,,фізична особа
ОСНОВА,"Київ, вулиця Андріївська, 4",70,2017-03-31,ТЯ.21143824. 417463.35,Банківські послуги,Інші витрати,38427,Центральний офіс,33146358,Україна,комісія банку за тарифний пакет,2600133909,current,107.00,"ПАТ ""ПУМБ""",14282829,юридична особа
ОСНОВА,Київ,72,2017-03-21,13,"Придбання, ремонт офісної техніки та програмного забезпечення (Бухгалтерські програми, Ліга.закон, домени)",Придбання офісної техніки та програмного забезпечення,38426,Центральний офіс,33146358,Україна,"Оплата за постачання примірника та пакетів оновлення до програми ""M. E. Doc"" звітність",2600133909,current,399.00,"ТОВ ""ЦПЗ ""Софтком""",38516922,юридична особа
ОСНОВА,"Київ, вулиця Кирилівська, 102",60,2017-03-21,14,Інші податки,Податкові платежі,38425,Центральний офіс,33146358,Україна,Оплата за обробку даних для видачі сертифіката ЕЦП,2600133909,current,232.00,"ТОВ ""Центр сертифікації ключів ""Україна""",36865753,юридична особа
ОСНОВА,"Київ, вулиця Андріївська, 4",70,2017-03-07,ТЯ.1481073б. 939204105,Банківські послуги,Інші витрати,38424,Центральний офіс,33146358,Україна,комісія банку за зарахування коштів,2600133909,current,10.00,"ПАТ ""ПУМБ""",14282829,юридична особа
ОСНОВА,Київ,62,2017-03-07,9,Сплата ЄСВ,Податкові платежі,38423,Центральний офіс,33146358,Україна,Сплата ЄСВ 22% із заробітної плати,2600133909,current,704.00,ДПІ у Голосіївському районі м. Києва,39468461,юридична особа
ОСНОВА,"Київ, вулиця Володимирська, 69",63,2017-03-07,10,Податок на доходи,Податкові платежі,38422,Центральний офіс,33146358,Україна,податок з доходів фізичних осіб із зарплати,2600133909,current,576.00,УДКСУ у Голосіївському районі м. Києва,38039757,юридична особа
ОСНОВА,"Київ, вулиця Володимирська, 69",61,2017-03-07,11,Військовий збір,Податкові платежі,38421,Центральний офіс,33146358,Україна,Військовий збір із зарплати,2600133909,current,48.00,УДКСУ у Голосіївському районі м. Києва,38039757,юридична особа
ОСНОВА,Київ,84,2017-03-07,12,"Заробітна плата, премії","Заробітна плата, лікарняні, вагітності, відрядження, компенсації",38408,Центральний офіс,33146358,Україна,заробітна плата,2600133909,current,2576.00,Плакида Андрій Олексійович,2377414017,фізична особа
ОСНОВА,"Київ, вулиця Андріївська, 4",70,2017-03-03,ТК.1481073б. 911073806,Банківські послуги,Інші витрати,38420,Центральний офіс,33146358,Україна,комісія банку за зарахування коштів,2600133909,current,10.00,"ПАТ ""ПУМБ""",14282829,юридична особа
ОСНОВА,"Київ, вулиця Володимирська, 69",61,2017-03-03,7,Військовий збір,Податкові платежі,38419,Центральний офіс,33146358,Україна,Військовий збір із зарплати,2600133909,current,48.00,УДКСУ у Голосіївському районі м. Києва,38039757,юридична особа
ОСНОВА,"Київ, вулиця Володимирська, 69",63,2017-03-03,6,Податок на доходи,Податкові платежі,38418,Центральний офіс,33146358,Україна,податок з доходів фізичних осіб із зарплати,2600133909,current,576.00,УДКСУ у Голосіївському районі м. Києва,38039757,юридична особа
ОСНОВА,Київ,84,2017-03-03,8,"Заробітна плата, премії","Заробітна плата, лікарняні, вагітності, відрядження, компенсації",38407,Центральний офіс,33146358,Україна,заробітна плата,2600133909,current,2576.00,Плакида Андрій Олексійович,2377414017,фізична особа
ОСНОВА,Київ,62,2017-02-20,5,Сплата ЄСВ,Податкові платежі,38417,Центральний офіс,33146358,Україна,Сплата ЄСВ 22% із заробітної плати,2600133909,current,704.00,ДПІ у Голосіївському районі м. Києва,39468461,юридична особа
ОСНОВА,"Київ, вулиця Андріївська, 4",70,2017-02-14,_0217_2.2092,Банківські послуги,Інші витрати,38416,Центральний офіс,33146358,Україна,комісія банку за пакетне обслуговування,2600133909,current,120.00,"ПАТ ""ПУМБ""",14282829,юридична особа
ОСНОВА,"Київ, вулиця Володимирська, 69",61,2017-01-19,1,Військовий збір,Податкові платежі,38415,Центральний офіс,33146358,Україна,Військовий збір із зарплати,2600133909,current,48.00,УДКСУ у Голосіївському районі м. Києва,38039757,юридична особа
ОСНОВА,Київ,62,2017-01-19,3,Сплата ЄСВ,Податкові платежі,38414,Центральний офіс,33146358,Україна,Сплата ЄСВ 22% із заробітної плати,2600133909,current,704.00,ДПІ у Голосіївському районі м. Києва,39468461,юридична особа
ОСНОВА,"Київ, вулиця Володимирська, 69",63,2017-01-19,2,Податок на доходи,Податкові платежі,38413,Центральний офіс,33146358,Україна,податок з доходів фізичних осіб із зарплати,2600133909,current,576.00,УДКСУ у Голосіївському районі м. Києва,38039757,юридична особа
ОСНОВА,Київ,84,2017-01-19,4,"Заробітна плата, премії","Заробітна плата, лікарняні, вагітності, відрядження, компенсації",38406,Центральний офіс,33146358,Україна,заробітна плата,2600133909,current,2576.00,Плакида Андрій Олексійович,2377414017,фізична особа
ОСНОВА,"Київ, вулиця Андріївська, 4",70,2017-01-17,916.9883,Банківські послуги,Інші витрати,38412,Центральний офіс,33146358,Україна,комісія банку за пакетне обслуговування,2600133909,current,120.00,"ПАТ ""ПУМБ""",14282829,юридична особа
ОСНОВА,"Київ, вулиця Андріївська, 4",70,2017-01-17,1016.873,Банківські послуги,Інші витрати,38411,Центральний офіс,33146358,Україна,комісія банку за повторне підключення до системи КБ,2600133909,current,50.00,"ПАТ ""ПУМБ""",14282829,юридична особа
ОСНОВА,"Київ, вулиця Андріївська, 4",70,2017-01-17,117.11812,Банківські послуги,Інші витрати,38410,Центральний офіс,33146358,Україна,комісія банку за пакетне обслуговування,2600133909,current,120.00,"ПАТ ""ПУМБ""",14282829,юридична особа
ОСНОВА,"Київ, вулиця Андріївська, 4",70,2017-01-17,816.10239,Банківські послуги,Інші витрати,38409,Центральний офіс,33146358,Україна,комісія банку за пакетне обслуговування,2600133909,current,120.00,"ПАТ ""ПУМБ""",14282829,юридична особа
